fUSD/lending_fUSD_20240214
["ID","MTS","AMOUNT","RATE_DAILY","PERIOD"]
[313977873,1707903039430,-151.016,0.00022998,3]
[313977875,1707903039439,-218.016,0.00022998,3]
[313977877,1707903039449,-873.90820408,0.00022999,2]
[313977879,1707903039458,-386.41822911,0.00022999,2]
[313977881,1707903039467,-150.0,0.00022999,2]
[313977883,1707903039477,-150.0,0.00022999,2]
[313977885,1707903039486,-150.0,0.00022999,2]
[313977887,1707903039495,-546.53497238,0.00023,3]
[313977890,1707903039505,-756900.4130464,0.00023,2]
[313977892,1707903039516,-73393.4565326,0.00023,2]
[313977894,1707903039525,-4814.21526873,0.00023,2]
[313977896,1707903039534,-2205026.6824546,0.00023,2]
[313977897,1707903039591,-40494.88415241,0.00023,2]
[313977899,1707903039602,-161543.00166281,0.00023,2]
[313977900,1707903039621,-457.46400612,0.00023,2]
[313977901,1707903039686,-434.45664714,0.00023,2]
[313977902,1707903039706,-1083.91169171,0.00023,2]
[313977903,1707903039718,-23820.68634001,0.00023,2]
[313977930,1707903044957,-412.40046167,0.00023,2]
[313977938,1707903045020,-10214.00253896,0.00023,2]
[313977939,1707903045033,-958.14889025,0.00023,2]
[313977940,1707903045046,-584.01055731,0.00023,2]
[313977941,1707903045058,-308.04146251,0.00023,2]
[313977942,1707903045075,-3097.70663961,0.00023,2]
[313977943,1707903045087,-458003.14700012,0.00023,2]
[313977944,1707903045108,-4123.85277689,0.00023,2]
[313977945,1707903045120,-3673.3366697,0.00023,2]
[313977946,1707903045132,-3801.11447307,0.00023,2]
[313977947,1707903045144,-879.70945678,0.00023,2]
[313977948,1707903045155,-2084.88153703,0.00023,2]
[313977949,1707903045171,-457.14295137,0.00023,2]
[313977950,1707903045183,-2540.66810606,0.00023,2]
[313977951,1707903045207,-354.92620745,0.00023,2]
[313977952,1707903045228,-16342.24262701,0.00023,2]
[313977953,1707903045241,-6578.226,0.00023,2]
[313977954,1707903045253,-52259.70954315,0.00023,2]
[313977955,1707903045268,-2556.64019869,0.00023,2]
[313977956,1707903045280,-4826.38541308,0.00023,2]
[313977957,1707903045293,-13690.40631751,0.00023,2]
[313977958,1707903045322,-495.26549817,0.00023,2]
[313977959,1707903045352,-572.81985068,0.00023,2]
[313977960,1707903045391,-411.7493109,0.00023,2]
[313977961,1707903045403,-508.04166365,0.00023,2]
[313977962,1707903045418,-420241.71465433,0.00023,2]
[313977963,1707903045474,-559.821736,0.00023,2]
[313977966,1707903045486,-19221.78028096,0.00023,2]
[313978013,1707903045804,-468.86466092,0.00022999,2]
[313978015,1707903045813,-94499.28770375,0.00023,2]
[313978017,1707903045826,-461.37802581,0.00023,2]
[313978022,1707903045866,-4116.41908391,0.00023,2]
[313978028,1707903045911,-29746.95214186,0.00023,2]
[313978030,1707903045922,-34901.19470506,0.00023,2]
[313978033,1707903045934,-37385.36750133,0.00023,2]
[313978035,1707903045945,-5140.9614,0.00023,2]
[313978037,1707903045956,-51308.77769899,0.00023,2]
[313978039,1707903045968,-154479.38694988,0.00023,2]
[313978045,1707903046008,-497.28303073,0.00022999,2]
[313978047,1707903046021,-608.08286464,0.00022999,2]
[313978049,1707903046030,-436.95410204,0.00022999,2]
[313978051,1707903046039,-24525.12822476,0.00023,2]
[313978053,1707903046050,-1375.93436427,0.00023,2]
[313978056,1707903046062,-446.62717679,0.00023,2]
[313978058,1707903046073,-1079.69844227,0.00023,2]
[313978074,1707903046211,-495.2108211,0.00023,2]
[313978077,1707903046234,-40874.0200303,0.00023,2]
[313978079,1707903046243,-285.23094248,0.00023,2]
[313978081,1707903046253,-2000.0,0.00023,2]
[313978083,1707903046263,-200.0,0.00023,2]
[313978085,1707903046274,-3000.0,0.00023,2]
[313978087,1707903046283,-450.4,0.00023,2]
[313978089,1707903046293,-3432.76659586,0.00023007,2]
[313978091,1707903046302,-3000.0,0.0002301,2]
[313978093,1707903046311,-500.0,0.00023014,2]
[313978095,1707903046320,-3000.0,0.0002302,2]
[313978097,1707903046329,-3000.0,0.0002303,2]
[313978099,1707903046338,-5796.741587,0.0002304,2]
[313978101,1707903046347,-152.1,0.00023058,2]
[313978102,1707903046356,-1272.6,0.00023082,2]
[313978106,1707903046366,-1281.24946351,0.00023103,2]
[313978108,1707903046375,-645.77,0.00023103,2]
[313978109,1707903046386,-3164.09775072,0.00023179,2]
[313978111,1707903046396,-1272.6,0.00023193,2]
[313978113,1707903046406,-3469.0,0.000232,2]
[313978116,1707903046417,-20075.0,0.000232,2]
[313978117,1707903046427,-152.1,0.00023226,2]
[313978120,1707903046438,-2000.0,0.0002323,2]
[313978122,1707903046447,-200.0,0.0002323,2]
[313978124,1707903046457,-1340.10592125,0.00023238,2]
[313978126,1707903046466,-173.15,0.00023262,2]
[313978128,1707903046476,-1281.24946351,0.00023292,2]
[313978129,1707903046486,-1272.6,0.00023305,2]
[313978131,1707903046495,-167.24,0.00023312,2]
[313978134,1707903046505,-1340.10592126,0.00023339,2]
[313978135,1707903046516,-152.1,0.00023394,2]
[313978137,1707903046525,-1500.0,0.000234,2]
[313978139,1707903046534,-163.46,0.00023409,2]
[313978141,1707903046543,-152.1,0.00023563,2]
[313978143,1707903046552,-152.1,0.00023731,2]
[313978145,1707903046561,-3164.09775072,0.00023761,2]
[313978147,1707903046570,-424.69,0.00023786,2]
[313978149,1707903046580,-152.1,0.00023899,2]
[313978151,1707903046589,-1500.0,0.000239,2]
[313978154,1707903046598,-672.06,0.0002391,2]
[313978155,1707903046607,-200.0,0.00023924,2]
[313978157,1707903046617,-172.41,0.00023934,2]
[313978159,1707903046626,-603.6748965,0.00024,2]
[313978162,1707903046635,-1211.674,0.0002402,2]
[313978164,1707903046645,-530.021,0.0002402,2]
[313978166,1707903046654,-453.0,0.0002402,2]
[313978167,1707903046663,-152.1,0.00024068,2]
[313978169,1707903046672,-20008.39837141,0.00024088,2]
[313978171,1707903046681,-296.67007209,0.000241,2]
[313978189,1707903046837,-151.495,0.0002413,2]
[313978191,1707903046847,-207.627,0.0002413,2]
[313978193,1707903046857,-2845.496,0.0002413,2]
[313978196,1707903046866,-2299.604,0.0002413,2]
[313978197,1707903046877,-19835.0,0.0002413,2]
[313978199,1707903046886,-9839.168,0.0002413,2]
[313978202,1707903046896,-4227.57,0.0002413,2]
[313978204,1707903046905,-1259.394,0.0002413,2]
[313978205,1707903046914,-150.0,0.00024169,2]
[313978207,1707903046923,-79304.49748834,0.0002418,2]
[313978212,1707903046951,-555.88908337,0.0002418,2]
[313978214,1707903046963,-21051.66960716,0.0002418,2]
[313978221,1707903047019,-41785.84081115,0.0002418,2]
[313978223,1707903047028,-150.0,0.00024188,2]
[313978225,1707903047037,-150.0,0.00024194,2]
[313978227,1707903047046,-1500.0,0.00024206,2]
[313978229,1707903047055,-932.63902657,0.00024216,2]
[313978231,1707903047065,-150.0,0.00024228,2]
[313978233,1707903047074,-150.0,0.0002424,2]
[313978235,1707903047083,-150.0,0.00024261,2]
[313978237,1707903047092,-1500.0,0.00024272,2]
[313978239,1707903047102,-177.87875748,0.000243,2]
[313978241,1707903047111,-1500.0,0.00024315,2]
[313978243,1707903047120,-150.0,0.00024322,2]
[313978245,1707903047129,-159.75249794,0.00024326,2]
[313978247,1707903047138,-3164.09775072,0.00024343,2]
[313978249,1707903047147,-150.0,0.00024351,2]
[313978250,1707903047156,-150.0,0.00024351,2]
[313978251,1707903047166,-1500.0,0.0002436,2]
[313978252,1707903047176,-150.0,0.00024368,2]
[313978253,1707903047187,-167.24,0.00024372,2]
[313978254,1707903047199,-150.0,0.00024379,2]
[313978255,1707903047209,-150.0,0.00024382,2]
[313978256,1707903047220,-2154.32,0.00024384,2]
[313978257,1707903047231,-2271.52,0.00024384,2]
[313978259,1707903047241,-1500.0,0.00024393,2]
[313978261,1707903047251,-1500.0,0.000244,2]
[313978263,1707903047260,-655.65,0.00024463,2]
[313978265,1707903047271,-459.0,0.00024549,2]
[313978267,1707903047280,-19252.21979484,0.000246,2]
[313978269,1707903047290,-250.0,0.00024658,2]
[313978271,1707903047300,-209.0,0.00024687,5]
[313978273,1707903047309,-1000.0,0.0002469,2]
[313978275,1707903047319,-186.85902602,0.00024731,2]
[313978277,1707903047329,-83339.51432571,0.0002479,2]
[313978280,1707903047339,-83339.51432567,0.0002479,2]
[313978282,1707903047348,-2892.80301748,0.00024799,2]
[313978284,1707903047357,-2892.80301746,0.00024799,2]
[313978286,1707903047367,-3164.09775072,0.00024925,2]
[313978288,1707903047378,-501.60021559,0.0002497,2]
[313978290,1707903047388,-168.36808501,0.00025,2]
[313978292,1707903047397,-306.51567522,0.00025,2]
[313978294,1707903047406,-1592.71036688,0.00025,2]
[313978296,1707903047415,-397.37715936,0.00025,2]
[313978298,1707903047425,-1910.62108972,0.00025,2]
[313978300,1707903047434,-691.35711236,0.00025,2]
[313978302,1707903047444,-161.23345587,0.00025,2]
[313978304,1707903047454,-938.77467134,0.00025,2]
[313978306,1707903047463,-18720.26245093,0.00025,4]
[313978308,1707903047473,-156.10773935,0.00025,2]
[313978310,1707903047482,-1250.0,0.00025,3]
[313978312,1707903047491,-378.96348102,0.00025,2]
[313978314,1707903047500,-3000.0,0.00025,2]
[313978316,1707903047509,-3000.0,0.00025,2]
[313978318,1707903047520,-304.687,0.00025,2]
[313978320,1707903047529,-150.0,0.00025,2]
[313978322,1707903047539,-2892.80301746,0.00025009,2]
[313978324,1707903047549,-3000.0,0.0002501,2]
[313978326,1707903047558,-3000.0,0.0002502,2]
[313978328,1707903047568,-3000.0,0.0002503,2]
[313978330,1707903047578,-3000.0,0.0002504,2]
[313978332,1707903047590,-3000.0,0.0002505,2]
[313978334,1707903047598,-3000.0,0.0002506,2]
[313978336,1707903047608,-3000.0,0.0002507,2]
[313978338,1707903047618,-83339.51432567,0.00025078,2]
[313978340,1707903047627,-3000.0,0.0002508,2]
[313978342,1707903047636,-3000.0,0.0002509,2]
[313978344,1707903047646,-3000.0,0.000251,2]
[313978346,1707903047655,-3000.0,0.0002511,2]
[313978348,1707903047664,-3000.0,0.0002512,2]
[313978350,1707903047673,-3000.0,0.0002513,2]
[313978352,1707903047683,-3000.0,0.0002514,2]
[313978354,1707903047692,-3000.0,0.0002515,2]
[313978357,1707903047702,-3000.0,0.0002516,2]
[313978358,1707903047711,-3000.0,0.0002517,2]
[313978361,1707903047720,-150.0,0.00025172,2]
[313978363,1707903047730,-932.63902657,0.00025173,2]
[313978364,1707903047740,-3386.1501,0.0002518,2]
[313978366,1707903047749,-1000.0,0.000252,2]
[313978369,1707903047758,-167.24,0.00025431,2]
[313978371,1707903047770,-164.67,0.0002548,2]
[313978373,1707903047779,-3164.09775072,0.00025507,2]
[313978375,1707903047788,-163.46,0.00025537,2]
[313978377,1707903047797,-282.17728277,0.000259,2]
[313978378,1707903047807,-452.73645906,0.000259,2]
[313978381,1707903047816,-489.4389386,0.000259,2]
[313978383,1707903047826,-154.63198928,0.000259,4]
[313978385,1707903047837,-4178.948937,0.00026,2]
[313978387,1707903047846,-424.69,0.0002605,2]
[313978389,1707903047856,-3164.09775072,0.0002609,2]
[313978391,1707903047866,-655.65,0.00026107,2]
[313978393,1707903047877,-932.63902657,0.00026129,3]
[313978395,1707903047886,-459.0,0.00026193,2]
[313978397,1707903047895,-2892.80301746,0.00026482,2]
[313978399,1707903047905,-672.06,0.00026567,2]
[313978401,1707903047915,-83339.51432567,0.00026584,2]
[313978403,1707903047924,-3164.09775072,0.00026672,2]
[313978405,1707903047934,-152.0,0.0002686,3]
[313978407,1707903047943,-186.85902602,0.00026865,2]
[313978409,1707903047952,-209.0,0.00026894,8]
[313978411,1707903047963,-1300.0,0.00027,3]
[313978413,1707903047973,-417.12183381,0.00027,2]
[313978415,1707903047982,-932.63902657,0.00027086,3]
[313978417,1707903047991,-3559.293,0.0002713,2]
[313978419,1707903048001,-4208.0,0.0002713,2]
[313978421,1707903048011,-150.0,0.00027243,2]
[313978423,1707903048024,-3164.09775072,0.00027254,2]
[313978425,1707903048035,-150.0,0.00027291,2]
[313978427,1707903048046,-150.0,0.00027308,2]
[313978429,1707903048056,-150.0,0.00027327,2]
[313978430,1707903048066,-150.0,0.0002733,2]
[313978432,1707903048076,-150.0,0.00027335,2]
[313978434,1707903048085,-411.66,0.00027335,2]
[313978436,1707903048094,-150.0,0.00027347,2]
[313978438,1707903048104,-150.0,0.00027358,2]
[313978440,1707903048114,-150.0,0.00027363,2]
[313978442,1707903048124,-150.0,0.00027364,2]
[313978444,1707903048133,-150.0,0.00027365,2]
[313978447,1707903048145,-150.0,0.00027374,2]
[313978448,1707903048154,-150.0,0.0002738,2]
[313978450,1707903048164,-150.0,0.00027382,2]
[313978453,1707903048174,-155.0,0.00027397,2]
[313978455,1707903048183,-154.331164,0.00027397,7]
[313978457,1707903048194,-151.0,0.00027397,7]
[313978459,1707903048203,-151.0,0.00027397,7]
[313978461,1707903048213,-190.388625,0.00027397,7]
[313978463,1707903048225,-153.088021,0.00027397,7]
[313978464,1707903048234,-151.804296,0.00027397,7]
[313978466,1707903048243,-240.707712,0.00027397,7]
[313978469,1707903048253,-418.277248,0.00027397,7]
[313978470,1707903048262,-418.277248,0.00027397,7]
[313978473,1707903048273,-418.277248,0.00027397,7]
[313978474,1707903048284,-418.277248,0.00027397,7]
[313978476,1707903048293,-418.277248,0.00027397,7]
[313978478,1707903048302,-418.277248,0.00027397,7]
[313978480,1707903048313,-418.277248,0.00027397,7]
[313978482,1707903048323,-418.277248,0.00027397,7]
[313978485,1707903048333,-151.0,0.00027397,5]
[313978486,1707903048343,-151.0,0.00027397,5]
[313978489,1707903048353,-151.0,0.00027397,5]
[313978490,1707903048362,-151.0,0.00027397,5]
[313978492,1707903048371,-151.0,0.00027397,7]
[313978495,1707903048380,-162.571006,0.00027397,7]
[313978497,1707903048390,-151.0,0.00027397,7]
[313978499,1707903048400,-151.0,0.00027397,7]
[313978501,1707903048409,-151.0,0.00027397,7]
[313978503,1707903048418,-175.777901,0.00027397,7]
[313978505,1707903048427,-151.0,0.00027397,7]
[313978507,1707903048436,-151.0,0.00027397,7]
[313978509,1707903048445,-151.0,0.00027397,7]
[313978511,1707903048454,-151.0,0.00027397,7]
[313978513,1707903048464,-151.0,0.00027397,7]
[313978515,1707903048472,-151.0,0.00027397,7]
[313978517,1707903048481,-155.047548,0.00027397,7]
[313978519,1707903048491,-151.0,0.00027397,7]
[313978520,1707903048500,-157.543218,0.00027397,7]
[313978523,1707903048510,-364.13,0.00027397,2]
[313978525,1707903048521,-151.0,0.00027397,7]
[313978527,1707903048531,-164.069791,0.00027397,7]
[313978529,1707903048540,-151.0,0.00027397,7]
[313978530,1707903048550,-151.0,0.00027397,7]
[313978532,1707903048559,-151.0,0.00027397,7]
[313978535,1707903048569,-183.95088,0.00027397,7]
[313978537,1707903048579,-203.975721,0.00027397,7]
[313978539,1707903048589,-151.0,0.00027397,2]
[313978541,1707903048599,-151.0,0.00027397,7]
[313978543,1707903048609,-163.280803,0.00027397,7]
[313978545,1707903048619,-153.232915,0.00027397,7]
[313978547,1707903048629,-175.186264,0.00027397,7]
[313978549,1707903048640,-151.0,0.00027397,7]
[313978551,1707903048653,-151.0,0.00027397,7]
[313978553,1707903048663,-175.186264,0.00027397,7]
[313978555,1707903048673,-175.186264,0.00027397,7]
[313978557,1707903048684,-175.186264,0.00027397,7]
[313978559,1707903048694,-175.186264,0.00027397,7]
[313978561,1707903048705,-175.186264,0.00027397,7]
[313978563,1707903048716,-175.186264,0.00027397,7]
[313978565,1707903048726,-175.186264,0.00027397,7]
[313978567,1707903048737,-175.186264,0.00027397,7]
[313978569,1707903048748,-175.186264,0.00027397,7]
[313978570,1707903048760,-151.670536,0.00027397,7]
[313978572,1707903048772,-151.0,0.00027397,7]
[313978574,1707903048782,-151.0,0.00027397,7]
[313978576,1707903048792,-151.0,0.00027397,7]
[313978578,1707903048803,-151.0,0.00027397,7]
[313978580,1707903048814,-151.0,0.00027397,7]
[313978582,1707903048824,-156.629608,0.00027397,7]
[313978584,1707903048834,-151.0,0.00027397,7]
[313978586,1707903048844,-151.0,0.00027397,7]
[313978588,1707903048854,-151.0,0.00027397,7]
[313978590,1707903048865,-151.0,0.00027397,7]
[313978592,1707903048875,-151.0,0.00027397,7]
[313978609,1707903049022,-156.094942,0.00027397,7]
[313978611,1707903049033,-151.0,0.00027397,7]
[313978613,1707903049043,-151.0,0.00027397,7]
[313978615,1707903049052,-193.732407,0.00027397,7]
[313978617,1707903049061,-151.0,0.00027397,7]
[313978619,1707903049070,-151.0,0.00027397,7]
[313978621,1707903049079,-151.0,0.00027397,7]
[313978623,1707903049089,-151.0,0.00027397,7]
[313978624,1707903049098,-162.518588,0.00027397,7]
[313978625,1707903049107,-151.0,0.00027397,7]
[313978626,1707903049116,-151.0,0.00027397,7]
[313978627,1707903049126,-151.0,0.00027397,7]
[313978628,1707903049135,-151.0,0.00027397,7]
[313978629,1707903049144,-151.0,0.00027397,7]
[313978630,1707903049154,-154.817417,0.00027397,7]
[313978632,1707903049163,-151.0,0.00027397,7]
[313978634,1707903049172,-225.871987,0.00027397,7]
[313978636,1707903049181,-151.0,0.00027397,7]
[313978638,1707903049193,-151.0,0.00027397,7]
[313978640,1707903049203,-202.586714,0.00027397,7]
[313978642,1707903049212,-151.0,0.00027397,7]
[313978644,1707903049222,-151.0,0.00027397,7]
[313978647,1707903049234,-151.0,0.00027397,7]
[313978649,1707903049243,-151.0,0.00027397,7]
[313978651,1707903049251,-151.00000078,0.00027397,7]
[313978653,1707903049261,-157.808764,0.00027397,7]
[313978655,1707903049273,-151.0,0.00027397,7]
[313978657,1707903049282,-151.0,0.00027397,7]
[313978659,1707903049292,-151.0,0.00027397,7]
[313978661,1707903049301,-227.951601,0.00027397,7]
[313978663,1707903049310,-229.034064,0.00027397,7]
[313978665,1707903049320,-229.034064,0.00027397,7]
[313978667,1707903049329,-229.034064,0.00027397,7]
[313978669,1707903049338,-229.034064,0.00027397,7]
[313978671,1707903049347,-229.034064,0.00027397,7]
[313978673,1707903049356,-229.034064,0.00027397,7]
[313978674,1707903049365,-229.034064,0.00027397,7]
[313978677,1707903049374,-229.034064,0.00027397,7]
[313978678,1707903049383,-229.034064,0.00027397,7]
[313978681,1707903049393,-229.034064,0.00027397,7]
[313978682,1707903049403,-197.958404,0.00027397,7]
[313978684,1707903049412,-197.958404,0.00027397,7]
[313978686,1707903049421,-197.958404,0.00027397,7]
[313978688,1707903049430,-197.958404,0.00027397,7]
[313978691,1707903049439,-197.958404,0.00027397,7]
[313978693,1707903049449,-197.958404,0.00027397,7]
[313978694,1707903049458,-197.958404,0.00027397,7]
[313978696,1707903049467,-197.958404,0.00027397,7]
[313978698,1707903049476,-197.958404,0.00027397,7]
[313978700,1707903049485,-197.958404,0.00027397,7]
[313978702,1707903049494,-689.791791,0.00027397,7]
[313978704,1707903049503,-689.791791,0.00027397,7]
[313978707,1707903049512,-689.791791,0.00027397,7]
[313978709,1707903049523,-689.791791,0.00027397,7]
[313978711,1707903049532,-689.791791,0.00027397,7]
[313978712,1707903049541,-159.018569,0.00027397,7]
[313978714,1707903049550,-689.791791,0.00027397,7]
[313978717,1707903049560,-689.791791,0.00027397,7]
[313978719,1707903049569,-689.791791,0.00027397,7]
[313978721,1707903049578,-689.791791,0.00027397,7]
[313978723,1707903049587,-689.791791,0.00027397,7]
[313978725,1707903049596,-151.0,0.00027397,7]
[313978726,1707903049605,-151.0,0.00027397,7]
[313978729,1707903049614,-151.0,0.00027397,7]
[313978731,1707903049623,-151.0,0.00027397,7]
[313978733,1707903049633,-151.0,0.00027397,7]
[313978735,1707903049642,-167.967686,0.00027397,7]
[313978737,1707903049651,-169.15984,0.00027397,7]
[313978738,1707903049660,-325.536222,0.00027397,7]
[313978741,1707903049670,-325.536222,0.00027397,7]
[313978743,1707903049680,-325.536222,0.00027397,7]
[313978745,1707903049689,-325.536222,0.00027397,7]
[313978747,1707903049698,-325.536222,0.00027397,7]
[313978749,1707903049708,-325.536222,0.00027397,7]
[313978751,1707903049717,-325.536222,0.00027397,7]
[313978753,1707903049726,-325.536222,0.00027397,7]
[313978755,1707903049736,-325.536222,0.00027397,7]
[313978757,1707903049745,-325.536222,0.00027397,7]
[313978759,1707903049754,-156.072613,0.00027397,7]
[313978761,1707903049764,-151.0,0.00027397,7]
[313978763,1707903049774,-151.0,0.00027397,7]
[313978765,1707903049783,-151.0,0.00027397,7]
[313978767,1707903049792,-151.0,0.00027397,7]
[313978769,1707903049801,-151.0,0.00027397,7]
[313978771,1707903049811,-151.0,0.00027397,7]
[313978773,1707903049820,-167.284825,0.00027397,7]
[313978775,1707903049828,-151.0,0.00027397,7]
[313978777,1707903049838,-151.0,0.00027397,7]
[313978779,1707903049847,-151.0,0.00027397,7]
[313978781,1707903049856,-151.0,0.00027397,7]
[313978783,1707903049865,-151.0,0.00027397,7]
[313978785,1707903049874,-174.846514,0.00027397,7]
[313978787,1707903049883,-151.0,0.00027397,7]
[313978789,1707903049893,-151.0,0.00027397,7]
[313978791,1707903049902,-151.0,0.00027397,7]
[313978793,1707903049911,-151.0,0.00027397,7]
[313978795,1707903049920,-151.0,0.00027397,7]
[313978797,1707903049929,-151.0,0.00027397,7]
[313978799,1707903049938,-151.0,0.00027397,7]
[313978800,1707903049947,-151.0,0.00027397,7]
[313978803,1707903049956,-151.0,0.00027397,7]
[313978805,1707903049965,-151.0,0.00027397,7]
[313978806,1707903049975,-151.0,0.00027397,7]
[313978808,1707903049984,-168.925129,0.00027397,7]
[313978810,1707903049993,-151.0,0.00027397,7]
[313978811,1707903050002,-151.0,0.00027397,7]
[313978813,1707903050011,-151.0,0.00027397,7]
[313978815,1707903050022,-267.90508,0.00027397,7]
[313978817,1707903050031,-160.329293,0.00027397,7]
[313978818,1707903050041,-1684.56525,0.00027397,7]
[313978820,1707903050050,-1684.56525,0.00027397,7]
[313978822,1707903050060,-1684.56525,0.00027397,7]
[313978824,1707903050070,-1684.56525,0.00027397,7]
[313978825,1707903050080,-1684.56525,0.00027397,7]
[313978827,1707903050091,-1684.56525,0.00027397,7]
[313978829,1707903050101,-1684.56525,0.00027397,7]
[313978831,1707903050111,-1684.56525,0.00027397,7]
[313978832,1707903050121,-1684.56525,0.00027397,7]
[313978834,1707903050131,-1684.56525,0.00027397,7]
[313978836,1707903050142,-156.636542,0.00027397,7]
[313978838,1707903050152,-1006.0,0.000274,2]
[313978840,1707903050162,-500.0,0.000274,7]
[313978841,1707903050172,-500.0,0.000274,7]
[313978843,1707903050183,-150.0,0.00027416,2]
[313978845,1707903050194,-150.0,0.00027424,2]
[313978847,1707903050204,-150.0,0.0002743,2]
[313978849,1707903050214,-150.0,0.00027431,2]
[313978850,1707903050226,-150.0,0.00027433,2]
[313978852,1707903050237,-150.0,0.00027441,2]
[313978854,1707903050247,-150.0,0.00027451,2]
[313978856,1707903050256,-150.0,0.00027452,2]
[313978858,1707903050268,-150.0,0.0002747,2]
[313978860,1707903050280,-150.0,0.00027478,2]
[313978861,1707903050290,-150.0,0.00027481,2]
[313978863,1707903050300,-150.0,0.00027494,2]
[313978865,1707903050310,-150.0,0.00027497,2]
[313978867,1707903050321,-150.0,0.00027511,2]
[313978868,1707903050330,-150.0,0.00027513,2]
[313978870,1707903050340,-150.0,0.0002752,2]
[313978872,1707903050349,-150.0,0.00027522,2]
[313978874,1707903050358,-150.0,0.0002753,2]
[313978876,1707903050368,-150.0,0.00027537,2]
[313978877,1707903050378,-150.0,0.00027543,2]
[313978879,1707903050388,-150.0,0.00027545,2]
[313978881,1707903050397,-150.0,0.00027547,2]
[313978883,1707903050407,-324.75158999,0.0002755,2]
[313978884,1707903050416,-364.13,0.00027556,2]
[313978886,1707903050425,-150.0,0.00027565,2]
[313978888,1707903050435,-150.0,0.00027579,2]
[313978890,1707903050444,-150.0,0.00027587,2]
[313978891,1707903050453,-150.0,0.0002759,2]
[313978893,1707903050463,-150.0,0.00027601,2]
[313978895,1707903050472,-150.0,0.00027605,2]
[313978897,1707903050481,-150.0,0.00027656,2]
[313978899,1707903050490,-150.0,0.0002766,2]
[313978900,1707903050500,-150.0,0.00027679,2]
[313978902,1707903050508,-150.0,0.00027684,2]
[313978904,1707903050520,-150.0,0.00027698,2]
[313978906,1707903050529,-150.0,0.00027703,2]
[313978908,1707903050539,-150.0,0.0002771,2]
[313978910,1707903050548,-364.13,0.00027714,2]
[313978911,1707903050558,-2200.97833846,0.00027716,28]
[313978913,1707903050568,-150.0,0.00027719,2]
[313978915,1707903050578,-150.0,0.00027721,2]
[313978917,1707903050588,-150.0,0.00027723,2]
[313978919,1707903050598,-150.0,0.00027727,2]
[313978921,1707903050608,-655.65,0.00027751,2]
[313978923,1707903050617,-150.0,0.00027755,2]
[313978924,1707903050627,-150.0,0.0002776,2]
[313978926,1707903050637,-150.0,0.0002776,2]
[313978928,1707903050646,-150.0,0.0002777,2]
[313978930,1707903050656,-150.0,0.00027778,2]
[313978932,1707903050666,-150.0,0.00027794,2]
[313978934,1707903050675,-150.0,0.00027795,2]
[313978935,1707903050685,-150.0,0.00027803,2]
[313978937,1707903050695,-150.0,0.00027805,2]
[313978939,1707903050704,-150.0,0.00027809,2]
[313978941,1707903050713,-150.0,0.00027818,2]
[313978943,1707903050723,-150.0,0.0002782,2]
[313978945,1707903050733,-150.0,0.00027824,2]
[313978946,1707903050742,-150.0,0.0002783,2]
[313978948,1707903050752,-3164.09775072,0.00027836,2]
[313978950,1707903050762,-459.0,0.00027837,2]
[313978952,1707903050774,-150.0,0.00027838,2]
[313978954,1707903050785,-150.0,0.00027848,2]
[313978956,1707903050794,-150.0,0.00027853,2]